Cogmind - Beta 13 @@@ ROGUE MODE // 2024.04.30 @ 12:38:25 Player: monkeman Result: Destroyed by 0D-EDJ(R) with Subdweller Shrapnel Launcher Performance ------------- Evolutions (0) 0 Regions Visited (2) 400 Robots Destroyed (22) 110 Value Destroyed (612) 612 Prototype IDs (0) 0 Alien Tech Used (0) 0 Bonus (0) 0 TOTAL SCORE: 1122 Bonus ------- None Cogmind --------- Core Integrity 0/250 Matter 248/300 Energy 37/100 System Corruption 0% Temperature Cool (0) Movement Treading (260) Ox1 Location -10/Subcaves Parts ------- > --- POWER (1) -------- (None) > --- PROPULSION (2) --- Spiked Treads > --- UTILITY (2) ------ Large Storage Unit Subdweller Optics > --- WEAPON (2) ------- Small Laser > --- INVENTORY (15) --- Light Treads Light Treads Wheel Wheel Heat Sink High-capacity Storage Unit Signal Interpreter Improved Terrain Scanner Grenade Launcher Mining Laser Peak State ------------ > --- POWER ------------ Subdweller Power Source > --- PROPULSION ------- Light Treads Light Treads > --- UTILITY ---------- Large Storage Unit High-capacity Storage Unit > --- WEAPON ----------- EM Pulse Gun Subdweller Machine Gun > --- INVENTORY -------- Ion Engine Subdweller Power Source Light Treads Wheel Heat Sink Disposable Heat Sink Subdweller Optics Signal Interpreter Improved Terrain Scanner Light Armor Plating Small Laser Assault Rifle Grenade Launcher Grenade Launcher Mining Laser [Rating: 11] Favorites ----------- Power Ion Engine Engine Ion Engine Propulsion Light Treads Treads Light Treads Utility Large Storage Unit Device Improved Terrain Scanner Storage Large Storage Unit Protection Light Armor Plating Weapon EM Pulse Gun Energy Gun EM Pulse Gun Ballistic Gun Assault Rifle Launcher Subdweller Shrapnel Launcher Build | -11 -10 -10 ------- Run | Yrd Mat Sub Slots Evolved . | . . . Power . | . . . Propulsion . | . . . Utility . | . . . Weapon . | . . . Parts Attached 23 | 6 4 13 Power 4 | . 2 2 Engine 4 | . 2 2 Core . | . . . Reactor . | . . . Propulsion 3 | 2 . 1 Treads 3 | 2 . 1 Leg . | . . . Wheel . | . . . Hover . | . . . Flight . | . . . Utility 10 | 2 2 6 Device 2 | 1 . 1 Storage 5 | 1 1 3 Processor . | . . . Hackware . | . . . Protection 3 | . 1 2 Artifact . | . . . Weapon 6 | 2 . 4 Energy Gun 2 | 1 . 1 Energy Cannon . | . . . Ballistic Gun 3 | 1 . 2 Ballistic Cannon . | . . . Launcher 1 | . . 1 Special Weapon . | . . . Impact Weapon . | . . . Slashing Weapon . | . . . Piercing Weapon . | . . . Special Melee Weapon . | . . . Unidentified Prototypes . | . . . Parts Lost 7 | . . 7 Power 1 | . . 1 Propulsion 1 | . . 1 Utility 2 | . . 2 Weapon 3 | . . 3 Highest Loss Streak 4 | . . 4 To Critical Strikes . | . . . Average Slot Usage (%) 94 | . 100 91 Engine 11 | . 14 10 Treads 27 | . 28 27 Device 5 | . 8 2 Storage 13 | . 14 13 Protection 7 | . 5 8 Energy Gun 14 | . 14 14 Ballistic Gun 13 | . 14 13 Naked Turns . | . . . Heaviest Build 71 | 10 32 71 Greatest Support 40 | 40 40 40 Greatest Overweight (x) 1 | . . 1 Average Overweight (x) . | . . . Largest Inventory Capacity 20 | 8 15 20 Average Capacity 14 | 7 14 14 Most Carried 17 | 7 15 17 Average Carried 11 | 5 12 11 Final Capacity 15 | 8 15 15 Final Carried 13 | 7 13 10 Class Distribution -------------------- 100% | Mutant Dominant Class ---------------- Mutant | -10/Materials Mutant | -10/Subcaves Resources | -11 -10 -10 ----------- Run | Yrd Mat Sub Matter Collected 690 | 290 157 243 Remotely . | . . . Salvage Created 876 | 45 419 412 Parts 61 | 9 27 25 Haulers Intercepted 1 | . 1 . Recyclers Shooed . | . . . Parts Field Recycled . | . . . Retrieved Matter . | . . . Parts Self-Destructed 15 | . . 15 Prevented . | . . . Kills | -11 -10 -10 ------- Run | Yrd Mat Sub Combat Hostiles Destroyed 17 | . 8 9 Guns 16 | . 8 8 AOE 1 | . . 1 Classes Destroyed 8 | 1 3 4 Tunneler 3 | 2 1 . Hauler 1 | . 1 . Watcher 1 | . 1 . Swarmer 3 | . . 3 Grunt 8 | . 8 . Sentry 1 | . . 1 Cobbler 1 | . . 1 Subdweller 5 | . . 5 Best Kill Streak 2 | 1 2 2 Combat Bots Only 2 | . 2 2 Max Kills in Single Turn 2 | 1 2 1 Gunslinging 1 | . 1 . Exploded 1 | . . 1 Melee . | . . . Uniques/NPCs Destroyed . | . . . Combat | -11 -10 -10 -------- Run | Yrd Mat Sub Hostile Shots Fired 118 | . 38 80 Missed 37 | . 14 23 Damage Taken 1596 | . 309 1287 Core 279 | . 62 217 Absorbed by Shields . | . . . Core Remaining (%) 100 | 100 . . Volleys Fired 107 | 11 38 58 Largest 2 | 2 2 2 Hottest 80 | 60 60 80 Shots Fired 168 | 13 63 92 Gun 164 | 13 63 88 Cannon . | . . . Launcher 4 | . . 4 Special . | . . . Kinetic 97 | 11 38 48 Thermal 9 | . . 9 Explosive . | . . . Electromagnetic 62 | 2 25 35 Robot Hit Streak 13 | 7 7 13 Robot Miss Streak 5 | 3 5 4 Penetration Max . | . . . Secondary Targets 4 | . 2 2 Max Gunslinging Chain 1 | . 1 1 Shots Hit Robots 112 | 8 39 65 Core Hits 45 | 2 21 22 Critical Kills . | . . . Critical Parts Destroyed 1 | 1 . . Critical Strikes 2 | 1 . 1 Destroy 2 | 1 . 1 Melee Attacks . | . . . Impact . | . . . Slashing . | . . . Piercing . | . . . Sneak Attacks . | . . . Combat Hostiles . | . . . Follow-up Attacks . | . . . Damage Inflicted 1718 | 116 553 1049 Guns 1370 | 116 495 759 Cannons . | . . . Explosions 338 | . 48 290 Melee . | . . . Ramming 10 | . 10 . Kinetic 1101 | 91 322 688 Thermal 145 | . 48 97 Explosive . | . . . Electromagnetic 462 | 25 173 264 Impact . | . . . Slashing . | . . . Piercing . | . . . Highest Corruption . | . . . Average Corruption . | . . . Corruption Purged . | . . . Corruption Blocked . | . . . Overload Shots . | . . . Overflow Damage 57 | . . 57 Projectiles . | . . . Explosions 57 | . . 57 Melee . | . . . Knockbacks . | . . . Impact . | . . . Kinetic . | . . . Secondary . | . . . Self-Inflicted Damage 117 | . . 117 Shots 2 | . . 2 Rammed 2 | . 2 . Targets Rammed 3 | . 3 . Kicked . | . . . Crushed 1 | . 1 . Highest Temperature 31 | . 31 7 Average Temperature 16 | . 16 7 Received Heat Transfer 345 | . 171 174 Siege Activations . | . . . Robots Corrupted . | . . . Combat Hostiles . | . . . Parts Fried . | . . . Impact Corruptions . | . . . Robots Melted . | . . . Combat Hostiles . | . . . Parts Melted . | . . . Heat Transferred 325 | . 100 225 Parts Sabotaged . | . . . Parts Stolen . | . . . Parts Stripped . | . . . Power Chain Reactions 1 | . 1 . Alert | -11 -10 -10 ------- Run | Yrd Mat Sub Peak Influence 166 | 10 166 . Initial 6 | . 6 . Average 45 | 3 50 . Maximum Alert Level . | . . . Low Security (%) 100 | 100 100 . Level 1 . | . . . Level 2 . | . . . Level 3 . | . . . Level 4 . | . . . Level 5 . | . . . High Security . | . . . Max Security . | . . . Squads Dispatched 2 | . 2 . Investigation 1 | . 1 . Extermination . | . . . Reinforcement 1 | . 1 . Assault . | . . . Garrison . | . . . Intercept . | . . . Searches Triggered . | . . . Construction Impeded . | . . . Haulers Reinforced . | . . . Active Scanning Responses . | . . . Cargo Convoy Interrupts . | . . . Stealth | -11 -10 -10 --------- Run | Yrd Mat Sub Distress Signals 1 | . 1 . Communications Jammed . | . . . Distress Signals . | . . . Times Spotted 32 | . 16 16 Peak Tracking Total 3 | . 3 3 Tactical Retreats 1 | . . 1 Traps | -11 -10 -10 ------- Run | Yrd Mat Sub Traps Triggered 1 | . 1 . Indirectly . | . . . Trap Hack Attempts . | . . . Triggered . | . . . Disarmed . | . . . Reprogrammed . | . . . Reused . | . . . Traps Extracted . | . . . Installed . | . . . Triggered . | . . . Machines | -11 -10 -10 ---------- Run | Yrd Mat Sub Machines Disabled . | . . . Max in Single Turn . | . . . Machines Repaired . | . . . Machines Dismantled . | . . . Machines Sabotaged . | . . . Overloaded Fab Kills . | . . . Hacking | -11 -10 -10 --------- Run | Yrd Mat Sub Machines Accessed 1 | . 1 . Terminals 1 | . 1 . Fabricators . | . . . Repair Stations . | . . . Recycling Units . | . . . Scanalyzers . | . . . Garrison Access . | . . . Total Hacks 2 | . 2 . Successful . | . . . Failed 2 | . 2 . Catastrophic . | . . . Database Lockouts . | . . . Manual . | . . . Terminals 2 | . 2 . Fabricators . | . . . Repair Stations . | . . . Recycling Units . | . . . Scanalyzers . | . . . Garrison Access . | . . . Terminal Hacks . | . . . Fabricator Hacks . | . . . Repair Station Hacks . | . . . Recycling Unit Hacks . | . . . Scanalyzer . | . . . Garrison Access Hacks . | . . . Unauthorized Hacks . | . . . Terminals . | . . . Fabricators . | . . . Repair Stations . | . . . Recycling Units . | . . . Scanalyzers . | . . . Garrison Access . | . . . Data Cores Recovered . | . . . Used . | . . . Hacking Detections 1 | . 1 . Full Trace Events . | . . . Feedback Events . | . . . Feedback Blocked . | . . . Robot Schematics Acquired . | . . . Robots Built . | . . . Authchips . | . . . Time . | . . . Total Robot Build Rating . | . . . Part Schematics Acquired . | . . . Parts Built . | . . . Authchips . | . . . Time . | . . . Total Part Build Rating . | . . . Parts Repaired . | . . . Time . | . . . Parts Recycled . | . . . Recycled Matter . | . . . Retrieved Matter . | . . . Retrieved Components . | . . . Parts Scanalyzed . | . . . Part Schematics Acquired . | . . . Parts Damaged . | . . . Bothacking | -11 -10 -10 ------------ Run | Yrd Mat Sub Used RIF Installer . | . . . Robots Hacked . | . . . Non-combat . | . . . Combat . | . . . Robot Hacks Applied . | . . . Relay Couplers Released . | . . . Fabnet Peak Effective % . | . . . Robots Rewired . | . . . Allies Hacked . | . . . Hacks Repelled . | . . . Allies | -11 -10 -10 -------- Run | Yrd Mat Sub Total Allies . | . . . Largest Group . | . . . Highest-Rated Group . | . . . Highest-Rated Ally . | . . . Total Orders . | . . . Ally Attacks . | . . . Total Damage . | . . . Kills . | . . . Allies Corrupted . | . . . Allies Melted . | . . . Intel | -11 -10 -10 ------- Run | Yrd Mat Sub Robot Analysis Total . | . . . Derelict Logs Recovered 2 | . . 2 Drone Launches . | . . . Drone Recoveries . | . . . Exploration | -11 -10 -10 ------------- Run | Yrd Mat Sub Turns Passed 2479 | 107 921 1451 Spaces Moved 1232 | 46 465 721 Core 7 | 7 . . Treads 1225 | 39 465 721 Legs . | . . . Wheels . | . . . Hover . | . . . Flight . | . . . Fastest Speed 50 | 50 160 160 Average Speed 166 | 143 160 172 Slowest Speed 260 | 160 160 260 Overloaded Moves . | . . . Propulsion Burnouts . | . . . Robots Hopped . | . . . Cave-ins Triggered . | . . . Exploration Rate (%) 31 | 6 44 44 Regions Visited 2 Branch Regions 1 Pre-discovered Areas 1 | . . 1 Known Exits Taken . | . . . Unknown Exits Taken 2 | 1 1 . Scrap Searched . | . . . Spaces Dug . | . . . Terrain Destroyed 37 | . 6 31 Melee . | . . . Projectile . | . . . AOE 37 | . 6 31 Terrain Rammed . | . . . Walls Destroyed . | . . . Machines Disabled . | . . . Actions | -11 -10 -10 --------- Run | Yrd Mat Sub Total 1487 | 71 579 837 Wait 65 | 2 53 10 Move 1230 | 45 464 721 Hop . | . . . Pick Up 38 | 7 11 20 Fast Attach 8 | 6 . 2 Attach 7 | . 1 6 Detach . | . . . Swap 8 | . 3 5 Drop 19 | . 6 13 Fire 107 | 11 38 58 Melee . | . . . Ram . | . . . Kick . | . . . Crush 3 | . 3 . Escape Stasis . | . . . Rewire . | . . . Trap . | . . . Miscellaneous 2 | . . 2 Route ------- -11/Scrapyard -10/Materials -10/Subcaves (discovered 3 exits: [*Mat x2] / [*Rec]) History --------- Turn | Location | Event 13 | -11/Scrapyard | Discovered new exit (range 15) 108 | -11/Scrapyard | Entered Materials 304 | -10/Materials | Build established: Mutant 1018 | -10/Materials | Discovered new exit (range 7) 1029 | -10/Materials | Entered Subcaves 1062 | -10/Subcaves | Shifting Twisted Machinery released Piercing Trap 1065 | -10/Subcaves | Shifting Twisted Machinery released Scrap Shield 1067 | -10/Subcaves | Learned location of Zion (-6) 1079 | -10/Subcaves | Learned Materials trap positions 1269 | -10/Subcaves | Shifting Twisted Machinery released Mak. Thermal Plating 1282 | -10/Subcaves | Core integrity fell below 50% 1479 | -10/Subcaves | Shifting Twisted Machinery released Spk. Treads 1719 | -10/Subcaves | Discovered new exit (range 13) 1800 | -10/Subcaves | A swath of the cavern ceiling suddenly collapsed 2074 | -10/Subcaves | Discovered new exit (range 15) 2137 | -10/Subcaves | Discovered new exit (range 11) 2451 | -10/Subcaves | Ambushed by Subdweller buried in earth 2468 | -10/Subcaves | Core integrity fell below 20% 2480 | -10/Subcaves | Destroyed by 0D-EDJ(R) with Subdweller Shrapnel Launcher Last Messages --------------- Launcher. 02341_ RT-TL5(O) collects matter. 02383_ RT-TL5(O) cries out in pain. 02383_ RT-TL5(O) destroyed. 02388_ Acquired Sub. Shrapnel Launcher. 02389_ Acquired 15 matter. 02393_ Subatomizers dissect the Corrupted Wheel. 02426_ Dropped Grenade Launcher. 02447_ Assault Rifle destroyed. 02448_ N0-HTI(R) destroyed. 02452_ 6O-SME(R): "ARGHSUB!" 02454_ Destroyed Sub. Power Source. 02454_ EM Pulse Gun destroyed. 02454_ Destroyed EM Pulse Gun. 02454_ Lgt. Treads destroyed. 02454_ Destroyed Lgt. Treads. 02471_ Sub. Shrapnel Launcher destroyed. 02476_ 6O-SME(R) destroyed. 02478_ Acquired 33 matter. Map ----- +----------------------------------------------------+ | ?????????????????????????????????????????????????? | | ?????????????????????????????????????????????????? | | ?????????????????????????????????????????????????? | | ?????????????????????????????????????????????????? | | ?????????????????????????????????????????????????? | | ????????????????????????? ???????????????????????? | | ????????????????????????? ???????????????????????? | | ????????????????????????? ???????????????????????? | | ????????????????????????? ???????????????????????? | | ?????????????# ??????? ##?????????????????????? | | ?????????????# ??????? ##????????????????????? | | ?????????????# "?????? #????????????????????? | | ?????????????# ?????? ?????????????????????? | | ?????????? ??#; ????? ???????##????????????? | | ?????????? ?#; ????# ?????? ##???????????? | | ???????????? #; ????# ????? % #???????????? | | ????????????? % ??? %#???? % ##??????????? | | ?????????????? R = ??? % ##?##% #??????????? | | ???????????????? "?? ## #??????????? | | ????????????????? ;?? #??????????? | | ?????????????????? ### ## %???????????? | | ???????????????????# ; ; % ## #???????????? | | ??????????????????## ## ##??????????? | | ??????????????????# #?# #??????????? | | ??????????????????## ! #? #???????????? | | ??????????????????# &@[ ;### #????????????? | | ??????????????????### & ## #?????????????? | | ???????????????????# # #?????????????? | | ??????????????????# ;## ##????????????? | | ??????????????????## ##???????????? | | ???????????????????# ; % #???????????? | | ???????????????????##### #%# %##???????????? | | ???????????????????????###### % #????????????? | | ???????????????????????????# % ] ##???????????? | | ???????????????????????????#### ##??????????? | | ??????????????????????????????## #??????????? | | ???????????????????????????????# #??????????? | | ???????????????????????????????## #??????????? | | ????????????????????????????????## #??????????? | | ?????????????????????????????????# #??????????? | | ????????????????????????????????## #??????????? | | ????????????????????????????????# ###??????????? | | ????????????????????????????????## ##????????????? | | ????????????????????????????????# #????????????? | | ????????????????????????????????## ##????????????? | | ?????????????????????????????????# ##????????????? | | ?????????????????????????????????# #????????????? | | ?????????????????????????????????# #????????????? | | ????????????????????????????###### ##????????????? | | ????????????????????????????# #?????????????? | +----------------------------------------------------+ Best States ------------- Heat Dissipation 25 Energy Generation 15 Energy Capacity 250 Matter Stores 300 Matter Capacity 300 Sight Range 21 Terrain Scan Range 16 Terrain Scan Density 10 Armor Coverage 800 Evasion (%) 40 Recoil Reduction 2 Item Schematics ----------------- None Robot Schematics ------------------ None Fabricated ------------ Nothing Alien Tech Used ----------------- None Achievements -------------- None Challenges ------------ None Game ------ Seed MetaParticleFemtoactuators Manual? 0 Play Time 00:16:40 Cumulative 52.5 hours Start 2024.04.30 @ 12:27:29 End 2024.04.30 @ 12:38:25 Sessions 1 Manual Loads 0 Difficulty Rogue Special Mode None Game No. 72 Rogue 72 Adventurer 0 Explorer 0 Win Type - Total 1 Types 1/0/0/0/0/0/0/0/0 Lore% 27 Gallery% 43 Achievement% 32 Wizard Run 0 Options --------- Layout 1 ASCII 0 Keyboard 0 Movement Mouse Keybinds 0 Fullscreen 1 Font 24/Smallcaps Map View 50x35 Zoom Use 0% Tactical HUD 1 Map Filters NONE Filters NONE Steam 1 RUN: e84cf1c4-0181-49ee-b4de-f001dcd604ab